bitfinex/quotes_ETHUSD_20251126
["timestamp","ask_amount","ask_price","bid_price","bid_amount"]
[1764195251982,0.70502992,3026.4,3026.3,0.4483]
[1764195252183,0.91402992,3026.4,3026.3,0.4483]
[1764195252360,0.91402992,3026.4,3026.3,0.8966]
[1764195252563,1.61905984,3026.4,3026.3,0.8966]
[1764195254064,1.92679989,3026.4,3026.3,0.8966]
[1764195254466,1.92679989,3026.4,3026.2,0.001]
[1764195254467,9.55421281,3026.4,3026.2,0.001]
[1764195254690,9.55421281,3026.4,3026.1,0.1951]
[1764195254691,1.01276997,3026.3,3026.1,0.1951]
[1764195254870,1.01276997,3026.2,3026.1,0.1951]
[1764195255065,1.01276997,3026.2,3026.1,0.001]
[1764195255490,5.21854822,3026.2,3026.1,0.001]
[1764195255689,6.3030872,3026.2,3026.1,0.001]
[1764195255994,5.8072872,3026.2,3026.1,0.001]
[1764195256163,6.3030872,3026.2,3026.1,0.001]
[1764195256369,7.18842974,3026.2,3026.1,0.001]
[1764195256694,6.69262974,3026.2,3026.1,0.001]
[1764195257365,2.09730895,3026.2,3026.1,0.5155]
[1764195257573,2.30630895,3026.2,3026.1,0.5155]
[1764195257794,1.22176997,3026.2,3026.1,0.5155]
[1764195259417,1.01276997,3026.2,3026.1,0.5155]
[1764195259588,1.22176997,3026.2,3026.1,0.9638]
[1764195259773,1.01276997,3026.2,3026.1,0.9638]
[1764195259973,1.22176997,3026.2,3026.1,0.9638]
[1764195260208,0.51674005,3026.2,3026.1,0.9638]
[1764195260401,1.22176997,3026.2,3026.1,0.9638]
[1764195260902,0.51674005,3026.2,3026.1,0.9638]
[1764195261696,0.30774005,3026.2,3026.1,0.9638]
[1764195262007,0.51674005,3026.2,3026.1,0.9638]
[1764195262800,0.51674005,3026.2,3026.1,4.26838345]
[1764195263803,0.30774005,3026.2,3026.1,4.26838345]
[1764195263976,0.51674005,3026.2,3026.1,5.02569053]
[1764195264387,0.30774005,3026.2,3026.1,5.02569053]
[1764195264590,0.51674005,3026.2,3026.1,5.02569053]
[1764195265110,0.30774005,3026.2,3026.1,5.02569053]
[1764195265306,0.51674005,3026.2,3026.1,5.02569053]
[1764195265491,0.209,3026.2,3026.1,5.02569053]
[1764195267911,0.99246881,3026.7,3026.1,8.33027398]
[1764195268113,0.99246881,3026.7,3026.6,0.4483]
[1764195268297,1.50905301,3026.7,3026.6,0.4483]
[1764195268905,1.50905301,3026.7,3026.6,0.8966]
[1764195269214,1.50905301,3026.7,3026.6,0.4483]
[1764195269721,1.50905301,3026.7,3026.6,0.8966]
[1764195272109,1.50910978,3026.7,3026.6,0.8966]
[1764195272526,1.30010978,3026.7,3026.6,0.8966]
[1764195272832,0.51664097,3026.7,3026.6,4.20063753]
[1764195273512,0.51664097,3026.7,3026.6,0.4483]
[1764195274822,0.51664097,3026.7,3026.3,0.4483]
[1764195275018,0.30764097,3026.6,3026.3,3.75265601]
[1764195275230,0.209,3026.7,3026.3,3.75265601]
[1764195275231,0.30764097,3026.5,3026.3,3.75265601]
[1764195275428,0.30764097,3026.4,3026.3,3.75265601]
[1764195275627,0.30764097,3026.4,3026.3,0.4483]
[1764195275811,0.30764097,3026.4,3026.3,0.8966]
[1764195276026,0.30764097,3026.4,3026.3,4.20096506]
[1764195276196,0.99246553,3026.6,3026.3,0.8966]
[1764195276520,0.99246553,3026.6,3026.5,0.4483]
[1764195276825,1.30008681,3026.6,3026.5,0.4483]
[1764195277391,1.30008681,3026.6,3026.2,3.30444502]
[1764195277392,1.79588681,3026.6,3026.2,3.30444502]
[1764195277623,0.30762128,3026.5,3026.2,3.75274502]
[1764195277832,0.30762128,3026.4,3026.2,3.75274502]
[1764195278030,0.51662128,3026.3,3026.2,3.75274502]
[1764195278210,0.51662128,3026.3,3026.2,3.30444502]
[1764195278531,0.51662128,3026.3,3026.2,3.75274502]
[1764195278825,0.51662128,3026.3,3026.2,4.20104502]
[1764195279329,0.51662128,3026.3,3026.2,0.4483]
[1764195280697,0.51662128,3026.3,3026.2,4.20107425]
[1764195282030,0.30762128,3026.3,3026.2,4.20107425]
[1764195282207,0.51662128,3026.3,3026.2,4.95845916]
[1764195282827,0.30762128,3026.3,3026.2,4.95845916]
[1764195283128,0.209,3026.3,3026.2,4.95845916]
[1764195285128,0.99247209,3026.7,3026.2,4.95845916]
[1764195285129,0.99247209,3026.7,3026.2,8.26293341]
[1764195285346,0.30775185,3026.6,3026.3,1.61177083]
[1764195285504,0.51675185,3026.5,3026.4,0.4483]
[1764195286022,0.209,3026.5,3026.4,0.8966]
[1764195286220,0.002,3026.8,3026.4,0.8966]
[1764195286396,0.002,3026.8,3026.7,0.4483]
[1764195286600,0.002,3027.4,3026.7,0.4483]
[1764195286601,0.002,3027.4,3027.0,0.4483]
[1764195286796,0.002,3027.4,3027.3,7.76122027]
[1764195287019,0.002,3027.4,3027.3,1.81629411]
[1764195287220,0.002,3027.4,3027.3,5.11956765]
[1764195287419,0.002,3027.4,3027.3,12.41458479]
[1764195287822,0.002,3027.7,3027.4,0.72559411]
[1764195288022,0.002,3027.7,3027.6,7.56712027]
[1764195288436,0.002,3027.7,3027.6,1.62219411]
[1764195289207,0.002,3027.7,3027.6,4.92514033]
[1764195289425,0.002,3027.7,3027.6,5.83736745]
[1764195290023,0.002,3027.7,3027.6,4.66347334]
[1764195290332,0.002,3027.7,3027.6,4.19954622]
[1764195290708,0.002,3027.7,3027.6,4.92514033]
[1764195292405,0.002,3027.7,3027.6,4.47684033]
[1764195292935,0.002,3027.7,3027.6,0.4483]
[1764195293148,0.002,3027.7,3027.3,0.6424]
[1764195293329,0.002,3027.7,3027.4,3.3031308]
[1764195293507,0.002,3027.7,3027.3,3.49736917]
[1764195293706,0.002,3027.7,3027.3,6.80064271]
[1764195293919,0.002,3027.7,3027.3,3.49736917]
[1764195294121,0.4843,3027.7,3027.1,0.1941]
[1764195294331,0.88269347,3027.7,3027.1,0.1941]
[1764195295037,0.002,3027.7,3027.1,0.1941]
[1764195295439,0.4843,3027.7,3027.2,3.30338266]
[1764195295837,0.4843,3027.7,3027.2,6.60676532]
[1764195296016,0.4843,3027.7,3027.2,3.30338266]
[1764195296210,0.4843,3027.7,3027.2,6.60676532]
[1764195296406,0.99217012,3027.6,3027.2,6.60676532]
[1764195297208,0.99217012,3027.6,3027.0,0.4483]
[1764195297209,0.4578,3027.3,3026.7,0.4483]
[1764195297428,0.209,3027.2,3026.7,0.4483]
[1764195297622,0.209,3027.2,3026.9,0.72559411]
[1764195298007,0.209,3027.2,3027.1,0.4483]
[1764195298210,0.209,3027.2,3026.9,0.72559411]
[1764195298711,0.209,3027.1,3026.9,0.72559411]
[1764195299214,0.209,3027.1,3027.0,0.4483]
[1764195299614,0.209,3027.1,3027.0,4.47749503]
[1764195300140,0.209,3027.1,3027.0,3.75190092]
[1764195301421,0.209,3027.1,3027.0,3.30360092]
[1764195301618,0.4823,3027.4,3027.0,1.55733049]
[1764195301934,0.002,3027.7,3027.3,0.4483]
[1764195302134,0.4843,3027.7,3027.6,0.4483]
[1764195302342,0.002,3027.7,3027.6,0.4483]
[1764195302544,0.211,3027.7,3027.6,0.4483]
[1764195302709,0.002,3027.7,3027.6,0.4483]
[1764195302908,0.002,3027.7,3027.6,0.8966]
[1764195303129,0.211,3027.7,3027.6,0.8966]
[1764195303547,0.211,3027.7,3027.6,4.19954622]
[1764195303717,0.211,3027.7,3027.6,4.50150628]
[1764195306548,0.211,3027.7,3027.6,3.75124622]
[1764195307846,0.6909,3027.7,3027.5,3.30300743]
[1764195308048,0.6909,3027.7,3027.0,3.30457622]
[1764195308049,0.4308,3027.6,3027.0,3.30457622]
[1764195308257,0.4313,3027.1,3027.0,0.001]
[1764195308429,0.209,3027.1,3027.0,0.4493]
[1764195308632,0.209,3027.1,3027.0,3.75290092]
[1764195309821,0.6889,3027.1,3027.0,3.30460092]
[1764195310961,0.6889,3027.1,3027.0,0.001]
[1764195311849,1.49402869,3027.1,3027.0,0.001]
[1764195312023,2.9661533,3027.1,3027.0,0.001]
[1764195312222,6.26964509,3027.1,3027.0,0.001]
[1764195312427,2.9661533,3027.1,3027.0,0.001]
[1764195312937,6.26964509,3027.1,3027.0,0.001]
[1764195314224,2.9661533,3027.1,3027.0,0.001]
[1764195315294,6.26964509,3027.1,3027.0,0.001]
[1764195316046,2.9661533,3027.1,3027.0,0.001]
[1764195316344,6.26964509,3027.1,3027.0,0.001]
[1764195316550,6.67514909,3027.1,3027.0,0.001]
[1764195318740,2.9194533,3027.1,3027.0,0.001]
[1764195319660,6.22294509,3027.1,3027.0,0.001]
[1764195320334,2.7104533,3027.1,3027.0,0.001]
[1764195320654,2.43970558,3027.1,3027.0,0.001]
[1764195321236,5.74319737,3027.1,3027.0,0.001]
[1764195321429,2.43970558,3027.1,3027.0,0.001]
[1764195322729,2.23070558,3027.1,3027.0,0.001]
[1764195322930,1.50830558,3027.1,3027.0,0.001]
[1764195323135,5.75269737,3027.1,3027.0,0.001]
[1764195323348,6.32796711,3027.1,3027.0,0.001]
[1764195325039,6.73347111,3027.1,3027.0,0.001]
[1764195326536,6.83325937,3027.1,3027.0,0.001]
[1764195326941,6.73347111,3027.1,3027.0,0.001]
[1764195328369,6.7334338,3027.1,3027.0,0.001]
[1764195328538,6.73339984,3027.1,3027.0,0.001]
[1764195330172,8.16605615,3027.1,3027.0,0.001]
[1764195330865,8.26584441,3027.1,3027.0,0.001]
[1764195331771,8.26584441,3027.1,3027.0,0.4493]
[1764195331772,3.81245262,3027.1,3027.0,0.4493]
[1764195331980,0.30685742,3027.1,3027.0,0.4493]
[1764195332186,0.209,3027.1,3027.0,0.4493]
[1764195332849,0.209,3027.1,3027.0,3.75290092]
[1764195333080,0.209,3027.1,3027.0,1.19980077]
[1764195333281,0.209,3027.1,3027.0,4.50340169]
[1764195333570,0.209,3027.1,3027.0,1.19980077]
[1764195334655,1.00562833,3027.1,3027.0,0.001]
[1764195335264,0.51622833,3027.1,3027.0,0.4493]
[1764195337594,0.51622833,3027.1,3027.0,0.8976]
[1764195337997,0.51622833,3027.1,3027.0,4.20120092]
[1764195338292,0.4513,3027.4,3027.0,4.20120092]
[1764195338293,0.002,3027.4,3027.0,10.80840276]
[1764195338493,0.002,3027.4,3027.1,1.52914028]
[1764195338657,0.002,3027.4,3027.3,0.5454]
[1764195338857,0.211,3027.4,3027.3,3.84867354]
[1764195339094,0.51905223,3027.4,3027.3,4.29697354]
[1764195339294,0.211,3027.4,3027.3,5.16509304]
[1764195341094,0.002,3027.4,3027.3,5.16509304]
[1764195341395,0.002,3027.4,3027.3,5.89068715]
[1764195341805,0.002,3027.4,3027.3,2.13911361]
[1764195342103,0.002,3027.4,3027.3,3.84867354]
[1764195342470,0.002,3027.4,3027.3,4.29697354]
[1764195346119,0.211,3027.4,3027.3,4.29697354]
[1764195347971,0.002,3027.4,3027.3,4.29697354]
[1764195348174,0.211,3027.4,3027.3,4.29697354]
[1764195348402,0.002,3027.4,3027.3,5.38734707]
[1764195351097,0.002,3027.4,3027.3,4.93904707]
[1764195351311,0.002,3027.4,3027.3,5.38734707]
[1764195353313,0.002,3027.4,3027.3,3.84867354]
[1764195354481,0.002,3027.4,3027.3,4.29697354]
[1764195355318,0.002,3027.4,3027.3,3.75157354]
[1764195355319,0.211,3027.4,3027.3,3.75157354]
[1764195356622,0.002,3027.4,3027.3,3.75157354]
[1764195356824,0.002,3027.4,3027.3,4.91507847]
[1764195357026,0.002,3027.4,3027.3,5.64067258]
[1764195366522,0.002,3027.4,3027.3,6.04617658]
[1764195369022,0.002,3027.4,3027.3,5.64067258]
[1764195369823,0.002,3027.4,3027.3,5.64167258]
[1764195371515,0.002,3027.4,3027.3,4.02986765]
[1764195371516,0.4734,3027.4,3027.3,4.02986765]
[1764195372123,0.002,3027.4,3027.3,11.31363282]
[1764195372325,0.002,3027.4,3027.3,11.40266472]
[1764195372521,0.4734,3027.4,3027.3,10.41703282]
[1764195372730,0.4734,3027.4,3027.3,12.23737364]
[1764195372731,0.002,3027.4,3027.3,12.23737364]
[1764195373516,0.002,3027.4,3027.3,11.78907364]
[1764195373923,0.4734,3027.4,3027.3,0.001]
[1764195374130,1.27043342,3027.4,3027.3,0.001]
[1764195374330,0.99073342,3027.4,3027.3,0.72659411]
[1764195374528,0.99073342,3027.4,3027.3,0.001]
[1764195375134,0.51933342,3027.4,3027.3,1.17489411]
[1764195375362,0.99913342,3027.4,3027.3,0.72659411]
[1764195376029,1.49603342,3027.4,3027.3,0.001]
[1764195380320,2.30624579,3027.4,3027.3,0.001]
[1764195381261,0.002,3027.4,3027.3,0.4493]
[1764195381461,0.002,3027.4,3027.3,0.8976]
[1764195383122,0.002,3027.4,3027.3,4.92646765]
[1764195387831,0.002,3027.4,3027.3,13.22558017]
[1764195388048,0.002,3027.4,3027.3,4.47816765]
[1764195388348,0.002,3027.4,3027.3,5.71433221]
[1764195389364,0.002,3027.4,3027.3,5.26603221]
[1764195390041,0.002,3027.4,3027.3,5.71433221]
[1764195391031,0.002,3027.4,3027.3,14.01344473]
[1764195391455,0.002,3027.4,3027.3,14.41894873]
[1764195393932,0.002,3027.7,3027.4,1.13109811]
[1764195394137,0.002,3027.7,3027.6,1.57939811]
[1764195394557,0.002,3027.7,3027.6,2.02769811]
[1764195395743,0.002,3028.4,3027.8,0.405504]
[1764195395942,0.002,3028.4,3028.0,9.47300663]
[1764195396156,0.002,3028.4,3028.0,10.50568769]
[1764195396353,0.002,3028.4,3028.0,10.95398769]
[1764195396660,0.002,3028.4,3028.0,2.65487517]
[1764195397246,0.002,3028.4,3028.0,3.06037917]
[1764195397967,0.002,3028.4,3028.0,6.36288907]
[1764195398777,0.002,3028.4,3028.0,5.91458907]
[1764195398979,0.002,3028.4,3028.0,6.36288907]
[1764195400548,0.002,3028.4,3028.0,5.91458907]
[1764195401269,0.002,3028.4,3028.0,6.36288907]
[1764195401680,0.002,3028.4,3028.1,1.13109811]
[1764195401979,0.002,3028.4,3028.3,1.039404]
[1764195402157,0.002,3028.4,3028.3,13.95322981]
[1764195402350,0.002,3028.4,3028.3,19.14032267]
[1764195402557,0.002,3028.4,3028.3,16.84061236]
[1764195404785,0.002,3028.4,3028.3,19.13747103]
[1764195404974,0.002,3028.4,3028.3,21.3966612]
[1764195405881,0.002,3028.4,3028.3,17.5866612]
[1764195406087,0.002,3028.4,3028.3,16.65786834]
[1764195408592,0.002,3028.4,3028.3,17.11820005]
[1764195412364,0.002,3028.4,3028.3,17.5866612]
[1764195417279,0.002,3028.4,3028.3,17.71882728]
[1764195418587,1e-08,3028.8,3028.7,0.853804]
[1764195418789,1e-08,3028.8,3028.7,8.90014473]
[1764195418988,1e-08,3028.8,3028.7,9.67204379]
[1764195419288,1e-08,3028.8,3028.7,10.12034379]
[1764195422798,1e-08,3028.8,3028.7,10.56864379]
[1764195422987,1e-08,3028.8,3028.7,11.49743665]
[1764195424501,1e-08,3029.2,3028.7,18.10092989]
[1764195424690,1e-08,3029.2,3029.1,10.41919543]
[1764195424890,1e-08,3029.2,3029.1,4.43240873]
[1764195425088,1e-08,3029.2,3029.1,4.64140873]
[1764195425089,0.49340001,3029.2,3029.1,4.64140873]
[1764195426479,0.49340001,3029.2,3029.1,11.01787325]
[1764195429505,0.99250001,3029.2,3029.1,11.01787325]
[1764195429705,1e-08,3029.2,3029.1,12.35521454]
[1764195430878,0.49080001,3029.2,3029.1,12.35521454]
[1764195431083,0.98990001,3029.2,3029.1,12.35521454]
[1764195434614,0.98990001,3029.2,3029.1,16.16521454]
[1764195435394,0.98990001,3029.2,3029.1,11.01787325]
[1764195435731,0.98990001,3029.2,3029.1,4.02690473]
[1764195439321,1.29794337,3029.2,3029.1,3.30131062]
[1764195439491,1.29794337,3029.2,3029.1,4.02690473]
[1764195439821,1.29794337,3029.2,3029.1,0.72559411]
[1764195440018,1.29794337,3029.2,3029.1,4.02690473]
[1764195440218,0.98990001,3029.2,3029.1,4.02690473]
[1764195443504,0.98990001,3029.2,3029.1,10.40336925]
[1764195443825,1e-08,3029.2,3029.1,12.62775181]
[1764195444123,1e-08,3029.2,3029.1,13.45065181]
[1764195444939,1e-08,3029.2,3029.1,13.91098352]
[1764195445831,1e-08,3029.2,3029.1,13.45065181]
[1764195446201,1e-08,3029.2,3029.1,13.00235181]
[1764195446604,1e-08,3029.2,3029.1,12.83675181]
[1764195447010,0.47990001,3029.2,3029.1,6.01198729]
[1764195448746,0.94880001,3029.2,3029.1,6.01198729]
[1764195449125,0.94880001,3029.2,3029.1,4.02690473]
[1764195449322,0.94880001,3029.2,3029.1,3.30131062]
[1764195449832,0.94880001,3029.2,3029.1,4.02690473]
[1764195450053,0.94880001,3029.2,3029.1,3.30131062]
[1764195450405,0.94880001,3029.2,3029.0,0.001]
[1764195450635,0.8335,3029.1,3029.0,0.001]
[1764195452412,0.8335,3029.1,3029.0,0.72659411]
[1764195452721,0.8335,3029.1,3029.0,0.001]
[1764195453107,1.0002,3029.1,3029.0,0.001]
[1764195454347,0.8335,3029.1,3029.0,0.001]
[1764195454510,0.8335,3029.1,3029.0,4.02801372]
[1764195455719,1e-08,3029.2,3029.1,0.72559411]
[1764195456127,0.47990001,3029.2,3029.1,0.72559411]
[1764195456324,0.47990001,3029.2,3029.1,7.10205863]
[1764195457338,0.47990001,3029.2,3029.1,10.40336925]
[1764195457537,1e-08,3029.2,3029.1,12.9579044]
[1764195458620,1e-08,3029.2,3029.1,12.95829832]
[1764195460437,1e-08,3029.2,3029.1,13.12389832]
[1764195461520,1e-08,3029.2,3029.1,12.95829832]
[1764195463029,1e-08,3029.2,3029.1,13.12389832]
[1764195463646,1e-08,3029.2,3029.1,12.50999832]
[1764195463959,0.47990001,3029.2,3029.1,12.50999832]
[1764195464164,1e-08,3029.2,3029.1,12.50999832]
[1764195464833,0.47890001,3029.2,3029.1,12.50999832]
[1764195465643,0.96430001,3029.2,3029.1,12.50999832]
[1764195466431,1e-08,3029.2,3029.1,12.50999832]
[1764195466657,1e-08,3029.2,3029.1,12.95829832]
[1764195466865,1e-08,3029.2,3029.1,13.40659832]
[1764195467072,1e-08,3029.2,3029.1,12.95829832]
[1764195467367,1e-08,3029.2,3029.1,12.50999832]
[1764195470239,1e-08,3029.2,3029.1,12.95829832]
[1764195471064,1e-08,3029.2,3029.1,12.50999832]
[1764195471364,1e-08,3029.2,3029.1,12.95829832]
[1764195471669,1e-08,3029.2,3029.1,12.50999832]
[1764195472054,0.47890001,3029.2,3029.1,12.50999832]
[1764195473164,0.96430001,3029.2,3029.1,12.50999832]
[1764195474264,0.96430001,3029.2,3029.1,12.10449432]
[1764195477374,0.96430001,3029.2,3029.1,5.72763588]
[1764195477575,0.96430001,3029.2,3029.1,12.10449432]
[1764195478345,1e-08,3029.2,3029.1,12.10449432]
[1764195478669,1e-08,3029.2,3029.1,12.55279432]
[1764195480285,1e-08,3029.2,3029.1,19.33515676]
[1764195480523,1e-08,3029.2,3029.1,20.71224962]
[1764195480653,1e-08,3029.2,3029.1,12.95829832]
[1764195480982,1e-08,3029.2,3029.1,13.40659832]
[1764195481367,1e-08,3029.2,3029.1,7.02973988]
[1764195481678,1e-08,3029.2,3029.1,12.95829832]
[1764195482069,0.47890001,3029.2,3029.1,12.50999832]
[1764195482256,0.96430001,3029.2,3029.1,12.50999832]
[1764195482759,0.47890001,3029.2,3029.1,12.50999832]
[1764195483160,0.96430001,3029.2,3029.1,12.50999832]
[1764195483378,0.47890001,3029.2,3029.1,12.50999832]
[1764195485381,1e-08,3029.2,3029.1,12.50999832]
[1764195485568,0.46630001,3029.2,3029.1,12.50999832]
[1764195485960,1e-08,3029.2,3029.1,12.50999832]
[1764195487975,0.93710001,3029.2,3029.1,12.50999832]
[1764195488299,0.45840001,3029.2,3029.1,12.50999832]
[1764195488967,1e-08,3029.2,3029.1,12.50999832]
[1764195489758,0.45840001,3029.2,3029.1,12.50999832]
[1764195491066,0.93710001,3029.2,3029.1,10.80926717]
[1764195492758,0.45840001,3029.2,3029.1,10.80926717]
[1764195492956,0.93710001,3029.2,3029.1,10.80926717]
[1764195493357,0.93710001,3029.2,3029.1,10.40376317]
[1764195493585,0.45840001,3029.2,3029.1,10.40376317]
[1764195493995,0.93710001,3029.2,3029.1,10.40376317]
[1764195494585,0.45840001,3029.2,3029.1,10.40376317]
[1764195494789,1e-08,3029.2,3029.1,12.12543372]
[1764195498691,1e-08,3029.2,3029.1,12.57373372]
[1764195498890,0.49150001,3029.2,3029.1,5.74857528]
[1764195499067,0.98880001,3029.2,3029.1,5.74857528]
[1764195505201,0.98880001,3029.2,3029.1,4.02690473]
[1764195520521,1.19780001,3029.2,3029.1,4.02690473]
[1764195521005,1.50660313,3029.2,3029.1,0.72559411]
[1764195521215,2.49814035,3029.2,3029.1,0.72559411]
[1764195521712,2.43915127,3029.2,3029.1,4.02690473]
[1764195522480,2.5386664,3029.2,3029.1,4.02690473]
[1764195522684,2.7476664,3029.2,3029.1,4.02690473]
[1764195523097,2.43915127,3029.2,3029.1,4.02690473]
[1764195524617,2.43915127,3029.2,3029.1,3.30131062]
[1764195524916,2.43915127,3029.2,3029.1,4.02690473]
[1764195526201,2.18933723,3029.2,3029.1,4.02690473]
[1764195526506,1.19780001,3029.2,3029.1,4.02690473]
[1764195528091,1e-08,3029.2,3029.1,10.85388511]
[1764195528490,1e-08,3029.2,3029.1,10.40558511]
[1764195528701,0.48560001,3029.2,3029.1,4.02690473]
[1764195529218,1e-08,3029.2,3029.1,5.22469652]
[1764195530283,1e-08,3029.2,3029.1,4.77639652]
[1764195530908,1e-08,3029.2,3029.1,5.22469652]
[1764195532408,0.48560001,3029.2,3029.1,4.77639652]
[1764195532607,0.93710001,3029.2,3029.1,4.77639652]
[1764195533122,0.48560001,3029.2,3029.1,4.77639652]
[1764195533413,1e-08,3029.2,3029.1,4.77639652]
[1764195534114,1e-08,3029.2,3029.1,5.22469652]
[1764195535814,0.48560001,3029.2,3029.1,4.77639652]
[1764195536200,1e-08,3029.2,3029.1,5.22469652]
[1764195542327,1e-08,3029.2,3029.1,4.77639652]
[1764195542642,0.93710001,3029.2,3029.1,4.02690473]
[1764195543127,0.48560001,3029.2,3029.1,4.02690473]
[1764195543333,1e-08,3029.2,3029.1,4.02690473]
[1764195544444,1e-08,3029.2,3029.1,4.88070873]
[1764195544741,1e-08,3029.2,3029.1,8.13597649]
[1764195544912,1e-08,3029.2,3029.1,7.70515011]
[1764195545107,1e-08,3029.2,3029.1,9.60974879]
[1764195545508,1e-08,3029.2,3029.1,13.16386934]
[1764195549029,0.48070001,3029.2,3029.1,5.48308496]
[1764195549343,1e-08,3029.2,3029.1,5.93138496]
[1764195549545,1e-08,3029.2,3029.1,6.37968496]
[1764195550732,1e-08,3029.2,3029.1,5.93138496]
[1764195550929,1e-08,3029.2,3029.1,6.78518896]
[1764195551334,1e-08,3029.2,3029.1,6.99418896]
[1764195554002,1e-08,3029.2,3029.1,6.54588896]
[1764195556137,1e-08,3029.2,3029.1,6.99418896]
[1764195556341,1e-08,3029.2,3029.1,10.35588896]
[1764195558432,1e-08,3029.2,3029.1,9.90758896]
[1764195558939,1e-08,3029.2,3029.1,10.35588896]
[1764195559137,0.46990001,3029.2,3029.1,8.45140873]
[1764195559939,0.95070001,3029.2,3029.1,8.04590473]
[1764195560240,1.88770002,3029.2,3029.1,8.04590473]
[1764195561268,1.88770002,3029.2,3029.1,7.83690473]
[1764195562219,1.88770002,3029.2,3029.1,4.02690473]
[1764195566814,1.40690002,3029.2,3029.1,4.02690473]
[1764195567217,1.88770002,3029.2,3029.1,4.02690473]
[1764195574847,1.40690002,3029.2,3029.1,4.02690473]
[1764195576138,0.93700002,3029.2,3029.1,4.02690473]
[1764195577924,1.40690002,3029.2,3029.1,4.02690473]
[1764195578352,1.88770002,3029.2,3029.1,4.02690473]
[1764195588559,2.28547002,3029.2,3029.1,4.02690473]
[1764195589529,2.28547002,3029.2,3029.1,0.72559411]
[1764195591650,2.28547002,3029.2,3029.1,4.02690473]
[1764195594164,2.09670002,3029.2,3029.1,4.02690473]
[1764195595974,0.93700002,3029.2,3029.1,4.47520473]
[1764195596174,0.93700002,3029.2,3029.1,4.64080473]
[1764195596175,1e-08,3029.2,3029.1,4.64080473]
[1764195596345,1e-08,3029.2,3029.1,5.08910473]
[1764195596543,1e-08,3029.2,3029.1,5.49460873]
[1764195596779,1e-08,3029.2,3029.1,7.01224574]
[1764195597744,1e-08,3029.2,3029.1,13.39159761]
[1764195598277,1e-08,3029.2,3029.1,7.01224574]
[1764195599746,1e-08,3029.2,3029.1,13.39159761]
[1764195600254,1e-08,3029.2,3029.1,19.77094948]
[1764195600453,1e-08,3029.2,3029.1,22.96627736]
[1764195600780,1e-08,3029.2,3029.1,20.61017868]
[1764195600984,1e-08,3030.0,3029.6,0.405504]
[1764195601283,1e-08,3030.0,3029.5,0.4483]
[1764195601284,1e-08,3030.0,3029.9,0.405504]
[1764195601496,1e-08,3030.0,3029.9,8.32008411]
[1764195601648,1e-08,3030.0,3029.9,8.76838411]
[1764195601847,1e-08,3030.0,3029.9,8.32008411]
[1764195602159,1e-08,3030.0,3029.9,8.76838411]
[1764195602361,1e-08,3030.0,3029.9,12.06882306]
[1764195602845,1e-08,3030.0,3029.9,11.62052306]
[1764195603443,1e-08,3030.0,3029.9,10.76671906]
[1764195603444,0.45420001,3030.0,3029.9,10.76671906]
[1764195603648,1e-08,3030.0,3029.9,11.21501906]
[1764195604188,0.45420001,3030.0,3029.9,4.38736719]
[1764195604483,0.45420001,3030.0,3029.9,4.02603306]
[1764195604774,0.91480001,3030.0,3029.9,4.02603306]
[1764195604987,0.91480001,3030.0,3029.2,3.30113372]
[1764195605288,1.0654,3029.9,3029.7,0.72559411]
[1764195605759,0.9145,3029.8,3029.2,12.98168722]
[1764195606083,0.4606,3029.8,3029.7,0.72559411]
[1764195606582,0.9148,3029.8,3029.7,4.02625094]
[1764195613094,0.9148,3029.8,3029.7,4.02625094]
[1764195614781,1.1238,3029.8,3029.7,4.02625094]
[1764195618894,0.4542,3029.8,3029.7,4.02625094]
[1764195619101,0.9278,3029.8,3029.7,4.02625094]
[1764195619644,1.15175,3029.8,3029.0,0.001]
[1764195619907,0.4736,3029.7,3029.1,6.60262124]
[1764195620201,0.4736,3029.7,3029.2,0.72559411]
[1764195620405,0.99142254,3029.6,3029.2,0.72559411]
[1764195620578,0.4762,3029.3,3029.2,0.72559411]
[1764195621000,0.9498,3029.3,3029.2,4.02679574]
[1764195621200,1.426,3029.3,3029.1,3.30124154]
[1764195621380,0.8559,3029.2,3029.1,3.30124154]
[1764195621586,0.8559,3029.2,3029.1,4.02683565]
[1764195622409,0.8559,3029.2,3029.1,0.72559411]
[1764195623310,0.8559,3029.2,3029.1,4.02690473]
[1764195626912,0.8559,3029.2,3029.1,0.72559411]
[1764195627116,0.8559,3029.2,3029.1,4.02690473]
[1764195627487,0.3823,3029.2,3029.1,4.02690473]
[1764195627694,0.4762,3029.3,3029.2,0.72559411]
[1764195627889,0.9498,3029.3,3029.2,0.72559411]
[1764195628088,0.9524,3029.3,3029.2,0.72559411]
[1764195628721,1.426,3029.3,3029.2,0.72559411]
[1764195629797,1.426,3029.3,3029.2,4.02679574]
[1764195630400,1.1614,3029.3,3029.2,4.02679574]
[1764195630600,0.9524,3029.3,3029.2,4.02679574]
[1764195630922,0.4736,3029.7,3029.2,15.52649506]
[1764195631094,0.9524,3029.5,3029.4,7.55324598]
[1764195631298,0.209,3029.6,3029.5,0.72559411]
[1764195631802,0.209,3029.6,3029.5,4.47476884]
[1764195633623,0.209,3029.6,3029.5,5.89027865]
[1764195637499,1.1588,3029.6,3029.5,4.02646884]
[1764195638829,1.1588,3029.6,3029.2,0.72559411]
[1764195639032,0.4762,3029.3,3029.2,0.72559411]
[1764195639830,0.4762,3029.3,3029.2,4.02679574]
[1764195640601,0.9489,3029.5,3029.2,7.32799737]
[1764195640796,0.4762,3029.3,3029.2,4.02679574]
[1764195641232,0.9498,3029.3,3029.2,4.02679574]
[1764195641832,0.4762,3029.3,3029.2,4.02679574]
[1764195642229,0.9498,3029.5,3029.2,7.32799737]
[1764195642529,0.4762,3029.5,3029.2,7.32799737]
[1764195642717,0.4762,3029.3,3029.2,4.02679574]
[1764195643123,0.9498,3029.3,3029.2,4.02679574]
[1764195643704,1e-08,3030.0,3029.2,18.63743429]
[1764195643931,1e-08,3030.0,3029.3,0.72559411]
[1764195643932,0.8729,3029.9,3029.3,0.72559411]
[1764195644134,0.8729,3029.9,3029.4,9.90295107]
[1764195644332,0.209,3029.9,3029.4,9.90295107]
[1764195644628,1e-08,3030.0,3029.8,0.4483]